fUSD/lending_fUSD_20250215
["ID","MTS","AMOUNT","RATE_DAILY","PERIOD"]
[353215962,1739661046473,-500.0,0.00010958,2]
[353215963,1739661046483,-500.0,0.00010958,2]
[353215964,1739661046492,-500.0,0.00010958,2]
[353215965,1739661046501,-500.0,0.00010958,2]
[353215966,1739661046510,-500.0,0.00010958,2]
[353215967,1739661046520,-500.0,0.00010958,2]
[353215968,1739661046530,-500.0,0.00010958,2]
[353215969,1739661046540,-500.0,0.00010958,2]
[353215970,1739661046549,-209.29196749,0.00010958,2]
[353215971,1739661046559,-500.0,0.00010958,2]
[353215972,1739661046568,-500.0,0.00010958,2]
[353215973,1739661046577,-500.0,0.00010958,2]
[353215974,1739661046586,-500.0,0.00010958,2]
[353215975,1739661046595,-358.04303542,0.00010958,2]
[353215976,1739661046605,-500.0,0.00010958,2]
[353215977,1739661046614,-500.0,0.00010958,2]
[353215978,1739661046623,-500.0,0.00010958,2]
[353215979,1739661046632,-500.0,0.00010958,2]
[353215980,1739661046641,-500.0,0.00010958,2]
[353215981,1739661046650,-500.0,0.00010958,2]
[353215982,1739661046659,-500.0,0.00010958,2]
[353215983,1739661046673,-500.0,0.00010958,2]
[353215984,1739661046682,-500.0,0.00010958,2]
[353215985,1739661046691,-500.0,0.00010958,2]
[353215986,1739661046701,-500.0,0.00010958,2]
[353215987,1739661046711,-581.17919478,0.00010958,2]
[353215988,1739661046722,-500.0,0.00010958,2]
[353215989,1739661046732,-500.0,0.00010958,2]
[353215990,1739661046742,-500.0,0.00010958,2]
[353215991,1739661046751,-500.0,0.00010958,2]
[353215992,1739661046761,-500.0,0.00010958,2]
[353215993,1739661046770,-500.0,0.00010958,2]
[353215994,1739661046779,-500.0,0.00010958,2]
[353215995,1739661046788,-500.0,0.00010958,2]
[353215996,1739661046797,-500.0,0.00010958,2]
[353215997,1739661046807,-500.0,0.00010958,2]
[353215998,1739661046816,-500.0,0.00010958,2]
[353215999,1739661046826,-500.0,0.00010958,2]
[353216000,1739661046836,-151.0,0.00010958,2]
[353216001,1739661046845,-151.0,0.00010958,2]
[353216002,1739661046854,-151.0,0.00010958,2]
[353216003,1739661046864,-151.0,0.00010958,2]
[353216004,1739661046873,-151.0,0.00010958,2]
[353216005,1739661046883,-151.0,0.00010958,2]
[353216006,1739661046892,-151.0,0.00010958,2]
[353216007,1739661046901,-151.0,0.00010958,2]
[353216008,1739661046911,-500.0,0.00010958,2]
[353216009,1739661046920,-151.0,0.00010958,2]
[353216010,1739661046929,-151.0,0.00010958,2]
[353216011,1739661046939,-151.0,0.00010958,2]
[353216012,1739661046948,-151.0,0.00010958,2]
[353216013,1739661046958,-151.0,0.00010958,2]
[353216014,1739661046967,-151.0,0.00010958,2]
[353216015,1739661046976,-151.0,0.00010958,2]
[353216016,1739661046986,-151.0,0.00010958,2]
[353216017,1739661046995,-151.0,0.00010958,2]
[353216018,1739661047003,-291.76003,0.00010958,2]
[353216019,1739661047012,-151.0,0.00010958,2]
[353216020,1739661047022,-151.0,0.00010958,2]
[353216021,1739661047031,-264.566189,0.00010958,2]
[353216022,1739661047040,-24.36135316,0.00010958,2]
[353216023,1739661047055,-475.63864684,0.00010958,2]
[353216024,1739661047065,-500.0,0.00010958,2]
[353216025,1739661047074,-500.0,0.00010958,2]
[353216026,1739661047083,-253.60745021,0.00010958,2]
[353216027,1739661047094,-246.39254979,0.00010958,2]
[353216028,1739661047103,-130.9298204,0.00010958,2]
[353216029,1739661047123,-369.0701796,0.00010958,2]
[353216030,1739661047132,-24.4298204,0.00010958,2]
[353216031,1739661047143,-475.5701796,0.00010958,2]
[353216032,1739661047152,-500.0,0.00010958,2]
[353216033,1739661047161,-500.0,0.00010958,2]
[353216034,1739661047170,-678.64,0.00010958,2]
[353216035,1739661047180,-1318.728267,0.00010958,2]
[353216036,1739661047189,-514.27,0.00010958,2]
[353216037,1739661047199,-500.0,0.00010958,2]
[353216038,1739661047208,-500.0,0.00010958,2]
[353216039,1739661047218,-500.0,0.00010958,2]
[353216040,1739661047227,-500.0,0.00010958,2]
[353216041,1739661047237,-516.42,0.00010958,2]
[353216042,1739661047246,-638.66,0.00010958,2]
[353216043,1739661047255,-500.0,0.00010958,2]
[353216044,1739661047265,-500.0,0.00010958,2]
[353216045,1739661047274,-500.0,0.00010958,2]
[353216046,1739661047283,-503.60597586,0.00010958,2]
[353216047,1739661047293,-500.0,0.00010958,2]
[353216048,1739661047307,-500.0,0.00010958,2]
[353216049,1739661047316,-1269.36,0.00010958,2]
[353216050,1739661047326,-500.0,0.00010958,2]
[353216051,1739661047336,-340.91760276,0.00010958,2]
[353216052,1739661047345,-1023.77,0.00010958,2]
[353216053,1739661047355,-500.0,0.00010958,2]
[353216054,1739661047364,-500.0,0.00010958,2]
[353216055,1739661047373,-500.0,0.00010958,2]
[353216056,1739661047382,-157.511234,0.00010958,2]
[353216057,1739661047391,-353.35313346,0.00010958,2]
[353216058,1739661047401,-500.0,0.00010958,2]
[353216059,1739661047411,-538.27,0.00010958,2]
[353216060,1739661047420,-500.0,0.00010958,2]
[353216061,1739661047430,-500.0,0.00010958,2]
[353216062,1739661047440,-500.0,0.00010958,2]
[353216063,1739661047449,-905.689594,0.00010958,2]
[353216064,1739661047459,-500.0,0.00010958,2]
[353216065,1739661047468,-500.0,0.00010958,2]
[353216066,1739661047478,-500.0,0.00010958,2]
[353216067,1739661047487,-392.2,0.00010958,2]
[353216068,1739661047496,-500.0,0.00010958,2]
[353216069,1739661047506,-500.0,0.00010958,2]
[353216070,1739661047644,-500.0,0.00010958,2]
[353216071,1739661047665,-500.0,0.00010958,2]
[353216072,1739661047677,-674.97,0.00010958,2]
[353216073,1739661047686,-500.0,0.00010958,2]
[353216074,1739661047696,-500.0,0.00010958,2]
[353216075,1739661047707,-718.43,0.00010958,2]
[353216076,1739661047718,-607.08,0.00010958,2]
[353216077,1739661047728,-500.0,0.00010958,2]
[353216078,1739661047737,-500.0,0.00010958,2]
[353216079,1739661047747,-665.35,0.00010958,2]
[353216080,1739661047758,-166.94340072,0.00010958,2]
[353216081,1739661047768,-500.0,0.00010958,2]
[353216082,1739661047778,-500.0,0.00010958,2]
[353216083,1739661047788,-500.0,0.00010958,2]
[353216084,1739661047799,-594.31,0.00010958,2]
[353216085,1739661047809,-500.0,0.00010958,2]
[353216086,1739661047819,-500.0,0.00010958,2]
[353216087,1739661047828,-500.0,0.00010958,2]
[353216088,1739661047838,-500.0,0.00010958,2]
[353216089,1739661047848,-500.0,0.00010958,2]
[353216090,1739661047857,-978.15,0.00010958,2]
[353216091,1739661047867,-500.0,0.00010958,2]
[353216092,1739661047876,-500.0,0.00010958,2]
[353216093,1739661047885,-500.0,0.00010958,2]
[353216094,1739661047894,-500.0,0.00010958,2]
[353216095,1739661047903,-500.0,0.00010958,2]
[353216096,1739661047912,-556.48,0.00010958,2]
[353216097,1739661047922,-871.43,0.00010958,2]
[353216098,1739661047931,-500.0,0.00010958,2]
[353216099,1739661047940,-500.0,0.00010958,2]
[353216100,1739661047949,-500.0,0.00010958,2]
[353216101,1739661047962,-500.0,0.00010958,2]
[353216102,1739661047972,-500.0,0.00010958,2]
[353216103,1739661047981,-720.88,0.00010958,2]
[353216104,1739661047991,-500.0,0.00010958,2]
[353216105,1739661048000,-500.0,0.00010958,2]
[353216106,1739661048009,-500.0,0.00010958,2]
[353216107,1739661048019,-500.0,0.00010958,2]
[353216108,1739661048029,-500.0,0.00010958,2]
[353216109,1739661048038,-500.0,0.00010958,2]
[353216110,1739661048047,-500.0,0.00010958,2]
[353216111,1739661048057,-500.0,0.00010958,2]
[353216112,1739661048068,-796.13,0.00010958,2]
[353216113,1739661048077,-500.0,0.00010958,2]
[353216114,1739661048087,-500.0,0.00010958,2]
[353216115,1739661048097,-500.0,0.00010958,2]
[353216116,1739661048107,-500.0,0.00010958,2]
[353216117,1739661048117,-500.0,0.00010958,2]
[353216118,1739661048128,-500.0,0.00010958,2]
[353216119,1739661048139,-618.64,0.00010958,2]
[353216120,1739661048149,-500.0,0.00010958,2]
[353216121,1739661048158,-247.00293597,0.00010958,2]
[353216122,1739661048168,-629.32,0.00010958,2]
[353216123,1739661048178,-500.0,0.00010958,2]
[353216124,1739661048188,-771.69,0.00010958,2]
[353216125,1739661048197,-500.0,0.00010958,2]
[353216126,1739661048208,-500.0,0.00010958,2]
[353216127,1739661048217,-500.0,0.00010958,2]
[353216128,1739661048227,-500.0,0.00010958,2]
[353216129,1739661048237,-500.0,0.00010958,2]
[353216130,1739661048246,-500.0,0.00010958,2]
[353216131,1739661048255,-827.94,0.00010958,2]
[353216132,1739661048265,-500.0,0.00010958,2]
[353216133,1739661048275,-500.0,0.00010958,2]
[353216134,1739661048285,-500.0,0.00010958,2]
[353216135,1739661048295,-500.0,0.00010958,2]
[353216136,1739661048304,-500.0,0.00010958,2]
[353216137,1739661048313,-500.0,0.00010958,2]
[353216138,1739661048323,-500.0,0.00010958,2]
[353216139,1739661048332,-500.0,0.00010958,2]
[353216140,1739661048341,-500.0,0.00010958,2]
[353216141,1739661048350,-500.0,0.00010958,2]
[353216142,1739661048359,-500.0,0.00010958,2]
[353216143,1739661048369,-500.0,0.00010958,2]
[353216144,1739661048378,-500.0,0.00010958,2]
[353216145,1739661048387,-500.0,0.00010958,2]
[353216146,1739661048397,-500.0,0.00010958,2]
[353216147,1739661048406,-500.0,0.00010958,2]
[353216148,1739661048415,-500.0,0.00010958,2]
[353216149,1739661048425,-500.0,0.00010958,2]
[353216150,1739661048435,-500.0,0.00010958,2]
[353216151,1739661048445,-500.0,0.00010958,2]
[353216152,1739661048456,-500.0,0.00010958,2]
[353216153,1739661048465,-500.0,0.00010958,2]
[353216154,1739661048476,-500.0,0.00010958,2]
[353216155,1739661048486,-500.0,0.00010958,2]
[353216156,1739661048497,-599.17,0.00010958,2]
[353216157,1739661048508,-500.0,0.00010958,2]
[353216158,1739661048519,-500.0,0.00010958,2]
[353216159,1739661048530,-500.0,0.00010958,2]
[353216160,1739661048541,-202.79,0.00010958,2]
[353216161,1739661048551,-623.56,0.00010958,2]
[353216162,1739661048561,-586.64,0.00010958,2]
[353216163,1739661048573,-606.72,0.00010958,2]
[353216164,1739661048583,-152.79701797,0.00010958,2]
[353216165,1739661048594,-500.0,0.00010958,2]
[353216166,1739661048604,-500.0,0.00010958,2]
[353216167,1739661048614,-500.0,0.00010958,2]
[353216168,1739661048624,-500.0,0.00010958,2]
[353216169,1739661048634,-500.0,0.00010958,2]
[353216170,1739661048644,-500.0,0.00010958,2]
[353216171,1739661048655,-1092.19,0.00010958,2]
[353216172,1739661048668,-500.0,0.00010958,2]
[353216173,1739661048680,-500.0,0.00010958,2]
[353216174,1739661048690,-500.0,0.00010958,2]
[353216175,1739661048700,-500.0,0.00010958,2]
[353216176,1739661048712,-500.0,0.00010958,2]
[353216177,1739661048723,-500.0,0.00010958,2]
[353216178,1739661048734,-626.14,0.00010958,2]
[353216179,1739661048745,-1961.33,0.00010958,2]
[353216180,1739661048755,-500.0,0.00010958,2]
[353216181,1739661048766,-500.0,0.00010958,2]
[353216182,1739661048776,-500.0,0.00010958,2]
[353216183,1739661048785,-674.6,0.00010958,2]
[353216184,1739661048795,-500.0,0.00010958,2]
[353216185,1739661048805,-500.0,0.00010958,2]
[353216186,1739661048815,-500.0,0.00010958,2]
[353216187,1739661048826,-746.24,0.00010958,2]
[353216188,1739661048835,-500.0,0.00010958,2]
[353216189,1739661048845,-773.44,0.00010958,2]
[353216190,1739661048855,-500.0,0.00010958,2]
[353216191,1739661048865,-567.16,0.00010958,2]
[353216192,1739661048874,-500.0,0.00010958,2]
[353216193,1739661048884,-500.0,0.00010958,2]
[353216194,1739661048894,-545.72,0.00010958,2]
[353216195,1739661048904,-500.0,0.00010958,2]
[353216196,1739661048913,-500.0,0.00010958,2]
[353216197,1739661048923,-500.0,0.00010958,2]
[353216198,1739661048934,-500.0,0.00010958,2]
[353216199,1739661048944,-537.92,0.00010958,2]
[353216200,1739661048955,-500.0,0.00010958,2]
[353216201,1739661048964,-500.0,0.00010958,2]
[353216202,1739661048974,-500.0,0.00010958,2]
[353216203,1739661048984,-500.0,0.00010958,2]
[353216204,1739661048993,-846.79,0.00010958,2]
[353216205,1739661049003,-500.0,0.00010958,2]
[353216206,1739661049013,-500.0,0.00010958,2]
[353216207,1739661049023,-500.0,0.00010958,2]
[353216208,1739661049032,-500.0,0.00010958,2]
[353216209,1739661049041,-500.0,0.00010958,2]
[353216210,1739661049050,-500.0,0.00010958,2]
[353216211,1739661049061,-666.22,0.00010958,2]
[353216212,1739661049071,-463.91841971,0.00010958,2]
[353216213,1739661049081,-960.42,0.00010958,2]
[353216214,1739661049090,-798.38,0.00010958,2]
[353216215,1739661049100,-500.0,0.00010958,2]
[353216216,1739661049111,-500.0,0.00010958,2]
[353216217,1739661049120,-500.0,0.00010958,2]
[353216218,1739661049130,-500.0,0.00010958,2]
[353216219,1739661049140,-500.0,0.00010958,2]
[353216220,1739661049150,-500.0,0.00010958,2]
[353216221,1739661049160,-500.0,0.00010958,2]
[353216222,1739661049170,-500.0,0.00010958,2]
[353216223,1739661049180,-500.0,0.00010958,2]
[353216224,1739661049190,-500.0,0.00010958,2]
[353216225,1739661049199,-500.0,0.00010958,2]
[353216226,1739661049211,-673.06,0.00010958,2]
[353216227,1739661049221,-500.0,0.00010958,2]
[353216228,1739661049230,-500.0,0.00010958,2]
[353216229,1739661049240,-500.0,0.00010958,2]
[353216230,1739661049251,-500.0,0.00010958,2]
[353216231,1739661049260,-515.71,0.00010958,2]
[353216232,1739661049270,-1023.01,0.00010958,2]
[353216233,1739661049280,-500.0,0.00010958,2]
[353216234,1739661049289,-500.0,0.00010958,2]
[353216235,1739661049300,-500.0,0.00010958,2]
[353216236,1739661049310,-500.0,0.00010958,2]
[353216237,1739661049319,-500.0,0.00010958,2]
[353216238,1739661049329,-500.0,0.00010958,2]
[353216239,1739661049338,-500.0,0.00010958,2]
[353216240,1739661049348,-500.0,0.00010958,2]
[353216241,1739661049359,-500.0,0.00010958,2]
[353216242,1739661049370,-555.84,0.00010958,2]
[353216243,1739661049380,-500.0,0.00010958,2]
[353216244,1739661049391,-585.93,0.00010958,2]
[353216245,1739661049400,-500.0,0.00010958,2]
[353216246,1739661049412,-500.0,0.00010958,2]
[353216247,1739661049421,-500.0,0.00010958,2]
[353216248,1739661049436,-500.0,0.00010958,2]
[353216249,1739661049446,-500.0,0.00010958,2]
[353216250,1739661049457,-500.0,0.00010958,2]
[353216251,1739661049467,-500.0,0.00010958,2]
[353216252,1739661049476,-1185.81,0.00010958,2]
[353216253,1739661049486,-520.51,0.00010958,2]
[353216254,1739661049497,-500.0,0.00010958,2]
[353216255,1739661049507,-500.0,0.00010958,2]
[353216256,1739661049517,-500.0,0.00010958,2]
[353216257,1739661049527,-500.0,0.00010958,2]
[353216258,1739661049538,-500.0,0.00010958,2]
[353216259,1739661049548,-672.17,0.00010958,2]
[353216260,1739661049557,-1289.68,0.00010958,2]
[353216261,1739661049568,-500.0,0.00010958,2]
[353216262,1739661049578,-500.0,0.00010958,2]
[353216263,1739661049589,-670.27,0.00010958,2]
[353216264,1739661049600,-500.0,0.00010958,2]
[353216265,1739661049610,-500.0,0.00010958,2]
[353216266,1739661049620,-730.18,0.00010958,2]
[353216267,1739661049629,-500.0,0.00010958,2]
[353216268,1739661049639,-500.0,0.00010958,2]
[353216269,1739661049649,-500.0,0.00010958,2]
[353216270,1739661049659,-432.78327988,0.00010958,2]
[353216271,1739661049672,-500.0,0.00010958,2]
[353216272,1739661049682,-500.0,0.00010958,2]
[353216273,1739661049693,-500.0,0.00010958,2]
[353216274,1739661049703,-1492.55,0.00010958,2]
[353216275,1739661049714,-500.0,0.00010958,2]
[353216276,1739661049724,-500.0,0.00010958,2]
[353216277,1739661049734,-500.0,0.00010958,2]
[353216278,1739661049746,-500.0,0.00010958,2]
[353216279,1739661049757,-533.14,0.00010958,2]
[353216280,1739661049769,-559.77,0.00010958,2]
[353216281,1739661049779,-500.0,0.00010958,2]
[353216282,1739661049789,-500.0,0.00010958,2]
[353216283,1739661049799,-500.0,0.00010958,2]
[353216284,1739661049810,-500.0,0.00010958,2]
[353216285,1739661049821,-1036.33,0.00010958,2]
[353216286,1739661049831,-500.0,0.00010958,2]
[353216287,1739661049841,-500.0,0.00010958,2]
[353216288,1739661049851,-512.27,0.00010958,2]
[353216289,1739661049860,-773.11,0.00010958,2]
[353216290,1739661049870,-555.04,0.00010958,2]
[353216291,1739661049879,-500.0,0.00010958,2]
[353216292,1739661049890,-500.0,0.00010958,2]
[353216293,1739661049899,-500.0,0.00010958,2]
[353216294,1739661049909,-500.0,0.00010958,2]
[353216295,1739661049921,-500.0,0.00010958,2]
[353216296,1739661049931,-500.0,0.00010958,2]
[353216297,1739661049941,-500.0,0.00010958,2]
[353216298,1739661049951,-768.45,0.00010958,2]
[353216299,1739661049961,-595.31,0.00010958,2]
[353216300,1739661049972,-508.22290325,0.00010958,2]
[353216301,1739661049983,-500.0,0.00010958,2]
[353216302,1739661049993,-742.87,0.00010958,2]
[353216303,1739661050002,-500.0,0.00010958,2]
[353216304,1739661050012,-500.0,0.00010958,2]
[353216305,1739661050023,-2134.13,0.00010958,2]
[353216306,1739661050033,-500.0,0.00010958,2]
[353216307,1739661050042,-561.94,0.00010958,2]
[353216308,1739661050052,-500.0,0.00010958,2]
[353216309,1739661050062,-500.0,0.00010958,2]
[353216310,1739661050072,-500.0,0.00010958,2]
[353216311,1739661050082,-500.0,0.00010958,2]
[353216312,1739661050091,-500.0,0.00010958,2]
[353216313,1739661050102,-677.07,0.00010958,2]
[353216314,1739661050112,-500.0,0.00010958,2]
[353216315,1739661050121,-500.0,0.00010958,2]
[353216316,1739661050131,-130.19788224,0.00010958,2]
[353216317,1739661050677,-369.80211776,0.00010958,2]
[353216318,1739661050687,-500.0,0.00010958,2]
[353216319,1739661050698,-104.10988247,0.00010958,2]
[353216320,1739661050718,-395.89011753,0.00010958,2]
[353216321,1739661050727,-500.0,0.00010958,2]
[353216322,1739661050738,-500.0,0.00010958,2]
[353216323,1739661050749,-500.0,0.00010958,2]
[353216324,1739661050758,-500.0,0.00010958,2]
[353216325,1739661050768,-500.0,0.00010958,2]
[353216326,1739661050778,-500.0,0.00010958,2]
[353216327,1739661050788,-500.0,0.00010958,2]
[353216328,1739661050797,-500.0,0.00010958,2]
[353216329,1739661050807,-500.0,0.00010958,2]
[353216330,1739661050817,-729.8,0.00010958,2]
[353216331,1739661050827,-500.0,0.00010958,2]
[353216332,1739661050837,-500.0,0.00010958,2]
[353216333,1739661050846,-500.0,0.00010958,2]
[353216334,1739661050855,-500.0,0.00010958,2]
[353216335,1739661050864,-500.0,0.00010958,2]
[353216336,1739661050874,-500.0,0.00010958,2]
[353216337,1739661050883,-500.0,0.00010958,2]
[353216338,1739661050893,-500.0,0.00010958,2]
[353216339,1739661050904,-500.0,0.00010958,2]
[353216340,1739661050915,-500.0,0.00010958,2]
[353216341,1739661050924,-500.0,0.00010958,2]
[353216342,1739661050934,-895.03,0.00010958,2]
[353216343,1739661050943,-500.0,0.00010958,2]
[353216344,1739661050954,-651.06,0.00010958,2]
[353216345,1739661050964,-500.0,0.00010958,2]
[353216346,1739661050974,-500.0,0.00010958,2]
[353216347,1739661050983,-500.0,0.00010958,2]
[353216348,1739661050993,-554.35,0.00010958,2]
[353216349,1739661051003,-500.0,0.00010958,2]
[353216350,1739661051013,-500.0,0.00010958,2]
[353216351,1739661051023,-596.09,0.00010958,2]
[353216352,1739661051032,-500.0,0.00010958,2]
[353216353,1739661051042,-500.0,0.00010958,2]
[353216354,1739661051051,-500.0,0.00010958,2]
[353216355,1739661051061,-811.48,0.00010958,2]
[353216356,1739661051070,-500.0,0.00010958,2]
[353216357,1739661051080,-500.0,0.00010958,2]
[353216358,1739661051090,-500.0,0.00010958,2]
[353216359,1739661051099,-500.0,0.00010958,2]
[353216360,1739661051108,-500.0,0.00010958,2]
[353216361,1739661051117,-500.0,0.00010958,2]
[353216362,1739661051127,-1385.97,0.00010958,2]
[353216363,1739661051136,-500.0,0.00010958,2]
[353216364,1739661051146,-500.0,0.00010958,2]
[353216365,1739661051156,-686.09,0.00010958,2]
[353216366,1739661051165,-500.0,0.00010958,2]
[353216367,1739661051175,-500.0,0.00010958,2]
[353216368,1739661051184,-500.0,0.00010958,2]
[353216369,1739661051194,-500.0,0.00010958,2]
[353216370,1739661051204,-500.0,0.00010958,2]
[353216371,1739661051214,-500.0,0.00010958,2]
[353216372,1739661051223,-789.49,0.00010958,2]
[353216373,1739661051233,-329.59272919,0.00010958,2]
[353216374,1739661051243,-500.0,0.00010958,2]
[353216375,1739661051253,-500.0,0.00010958,2]
[353216376,1739661051262,-500.0,0.00010958,2]
[353216377,1739661051271,-830.28,0.00010958,2]
[353216378,1739661051280,-763.25,0.00010958,2]
[353216379,1739661051290,-500.0,0.00010958,2]
[353216380,1739661051299,-1087.33,0.00010958,2]
[353216381,1739661051309,-1259.52,0.00010958,2]
[353216382,1739661051319,-560.18,0.00010958,2]
[353216383,1739661051328,-729.01,0.00010958,2]
[353216384,1739661051338,-999.77,0.00010958,2]
[353216385,1739661051347,-500.0,0.00010958,2]
[353216386,1739661051357,-717.29,0.00010958,2]
[353216387,1739661051366,-762.92,0.00010958,2]
[353216388,1739661051375,-561.12,0.00010958,2]
[353216389,1739661051385,-500.0,0.00010958,2]
[353216390,1739661051395,-500.0,0.00010958,2]
[353216391,1739661051404,-500.0,0.00010958,2]
[353216392,1739661051413,-500.0,0.00010958,2]
[353216393,1739661051423,-500.0,0.00010958,2]
[353216394,1739661051433,-1262.27,0.00010958,2]
[353216395,1739661051442,-500.0,0.00010958,2]
[353216396,1739661051451,-669.4,0.00010958,2]
[353216397,1739661051461,-500.0,0.00010958,2]
[353216398,1739661051471,-1085.73,0.00010958,2]
[353216399,1739661051480,-500.0,0.00010958,2]
[353216400,1739661051489,-500.0,0.00010958,2]
[353216401,1739661051499,-500.0,0.00010958,2]
[353216402,1739661051508,-724.73,0.00010958,2]
[353216403,1739661051517,-189.66986135,0.00010958,2]
[353216404,1739661051527,-559.81,0.00010958,2]
[353216405,1739661051536,-500.0,0.00010958,2]
[353216406,1739661051545,-599.55,0.00010958,2]
[353216407,1739661051555,-371.87543659,0.00010958,2]
[353216408,1739661051568,-265.20725197,0.00010958,2]
[353216409,1739661051578,-234.79274803,0.00010958,2]
[353216410,1739661051588,-271.66956868,0.00010958,2]
[353216411,1739661051597,-365.14977128,0.00010958,2]
[353216412,1739661051609,-3102.63022872,0.00010958,2]
[353216413,1739661051618,-500.0,0.00010958,2]
[353216414,1739661051627,-500.0,0.00010958,2]
[353216415,1739661051636,-1725.33,0.00010958,2]
[353216416,1739661051646,-500.0,0.00010958,2]
[353216417,1739661051655,-979.05,0.00010958,2]
[353216418,1739661051665,-500.0,0.00010958,2]
[353216419,1739661051678,-357.38895935,0.00010958,2]
[353216420,1739661051691,-142.61104065,0.00010958,2]
[353216421,1739661051700,-500.0,0.00010958,2]
[353216422,1739661051711,-787.36,0.00010958,2]
[353216423,1739661051720,-1633.82,0.00010958,2]
[353216424,1739661051730,-500.0,0.00010958,2]
[353216425,1739661051740,-511.62,0.00010958,2]
[353216426,1739661051750,-1265.89,0.00010958,2]
[353216427,1739661051759,-559.82,0.00010958,2]
[353216428,1739661051769,-1944.77,0.00010958,2]
[353216429,1739661051778,-776.42,0.00010958,2]
[353216430,1739661051787,-500.0,0.00010958,2]
[353216431,1739661051796,-500.0,0.00010958,2]
[353216432,1739661051805,-1142.23,0.00010958,2]
[353216433,1739661051814,-1567.2,0.00010958,2]
[353216434,1739661051823,-766.85,0.00010958,2]
[353216435,1739661051832,-500.0,0.00010958,2]
[353216436,1739661051841,-500.0,0.00010958,2]
[353216437,1739661051851,-1539.16,0.00010958,2]
[353216438,1739661051859,-500.0,0.00010958,2]
[353216439,1739661051868,-669.6,0.00010958,2]
[353216440,1739661051878,-4197.71,0.00010958,2]
[353216441,1739661051887,-500.0,0.00010958,2]
[353216442,1739661051896,-1162.2,0.00010958,2]
[353216443,1739661051905,-737.35,0.00010958,2]
[353216444,1739661051914,-500.0,0.00010958,2]
[353216445,1739661051923,-500.0,0.00010958,2]
[353216446,1739661051933,-500.0,0.00010958,2]
[353216447,1739661051942,-916.97,0.00010958,2]
[353216448,1739661051951,-1223.27,0.00010958,2]
[353216449,1739661051961,-117.16481839,0.00010958,2]
[353216450,1739661051973,-382.83518161,0.00010958,2]
[353216451,1739661051983,-500.0,0.00010958,2]
[353216452,1739661051992,-500.0,0.00010958,2]
[353216453,1739661052001,-658.54,0.00010958,2]
[353216454,1739661052010,-921.83,0.00010958,2]
[353216455,1739661052020,-1461.03,0.00010958,2]
[353216456,1739661052029,-500.0,0.00010958,2]
[353216457,1739661052038,-500.0,0.00010958,2]
[353216458,1739661052047,-1476.21,0.00010958,2]
[353216459,1739661052057,-521.97,0.00010958,2]
[353216460,1739661052067,-1423.34,0.00010958,2]
[353216461,1739661052076,-1326.9,0.00010958,2]